Workbook

Sheet Energex >>>
A2: ACS Public Lighting pricing model for Energex
A3: Regulatory control period 1 July 2020 to 30 June 2025

Sheet Input Data
A1: Public Lighting Quantity Inputs | B1: Units | C1: 2020-21 | D1: 2021-22 | E1: 2022-23 | F1: 2023-24 | G1: 2024-25
A3: Opening Population Public Lights
A5: NPL1 (Energex Owned & Operated)
A6: Major Conventional | B6: # | C6: 39792 | D6: 38167 | E6: 34942 | F6: 31178 | G6: 26852 | I6: Source: Energex PL Opex review model. Allocation between NPL1 and NPL2 based on the 2018-19 volume ratio
A7: Minor Conventional | B7: # | C7: 102272 | D7: 98545 | E7: 90920 | F7: 81894 | G7: 71336 | I7: Source: Energex PL Opex review model. Allocation between NPL1 and NPL2 based on the 2018-19 volume ratio
A8: Major LED | B8: # | C8: 2639 | D8: 4944 | E8: 8875 | F8: 13376 | G8: 18466 | I8: Source: Energex PL Opex review model. Allocation between NPL1 and NPL2 based on the 2018-19 volume ratio
A9: Minor LED | B9: # | C9: 6230 | D9: 11713 | E9: 21127 | F9: 31978 | G9: 44393 | I9: Source: Energex PL Opex review model. Allocation between NPL1 and NPL2 based on the 2018-19 volume ratio
A10: Total | B10: # | C10: =SUM(C6:C9) -> 150933 | D10: =SUM(D6:D9) -> 153369 | E10: =SUM(E6:E9) -> 155864 | F10: =SUM(F6:F9) -> 158426 | G10: =SUM(G6:G9) -> 161047
A12: NPL2 (Gifted & Energex Operated)
A13: Major Conventional | B13: # | C13: 48914 | D13: 46917 | E13: 42953 | F13: 38324 | G13: 33008 | I13: Source: Energex PL Opex review model. Allocation between NPL1 and NPL2 based on the 2018-19 volume ratio
A14: Minor Conventional | B14: # | C14: 125716 | D14: 121136 | E14: 111763 | F14: 100667 | G14: 87689 | I14: Source: Energex PL Opex review model. Allocation between NPL1 and NPL2 based on the 2018-19 volume ratio
A15: Major LED | B15: # | C15: 3245 | D15: 6077 | E15: 10910 | F15: 16442 | G15: 22699 | I15: Source: Energex PL Opex review model. Allocation between NPL1 and NPL2 based on the 2018-19 volume ratio
A16: Minor LED | B16: # | C16: 7659 | D16: 14398 | E16: 25971 | F16: 39308 | G16: 54569 | I16: Source: Energex PL Opex review model. Allocation between NPL1 and NPL2 based on the 2018-19 volume ratio
A17: Total | B17: # | C17: =SUM(C13:C16) -> 185534 | D17: =SUM(D13:D16) -> 188528 | E17: =SUM(E13:E16) -> 191597 | F17: =SUM(F13:F16) -> 194741 | G17: =SUM(G13:G16) -> 197965
A18: Total Opening Lights | B18: # | C18: =SUM(C10,C17) -> 336467 | D18: =SUM(D10,D17) -> 341897 | E18: =SUM(E10,E17) -> 347461 | F18: =SUM(F10,F17) -> 353167 | G18: =SUM(G10,G17) -> 359012
A20: Public Lights Additions by Type
A22: NPL1 (Energex Owned & Operated)
A23: Major Conventional | B23: # | C23: 0 | D23: 0 | E23: 0 | F23: 0 | G23: 0
A24: Minor Conventional | B24: # | C24: 0 | D24: 0 | E24: 0 | F24: 0 | G24: 0
A25: Major LED | B25: # | C25: 2043 | D25: 2402 | E25: 2820 | F25: 3188 | G25: 3618
A26: Minor LED | B26: # | C26: 5879 | D26: 6996 | E26: 8295 | F26: 9431 | G26: 10926
A27: Total | B27: # | C27: =SUM(C23:C26) -> 7922 | D27: =SUM(D23:D26) -> 9398 | E27: =SUM(E23:E26) -> 11115 | F27: =SUM(F23:F26) -> 12619 | G27: =SUM(G23:G26) -> 14544
A29: NPL2 (Gifted & Energex Operated)
A30: Major Conventional | B30: # | C30: 0 | D30: 0 | E30: 0 | F30: 0 | G30: 0
A31: Minor Conventional | B31: # | C31: 0 | D31: 0 | E31: 0 | F31: 0 | G31: 0
A32: Major LED | B32: # | C32: 4926 | D32: 5702 | E32: 6604 | F32: 7454 | G32: 8434
A33: Minor LED | B33: # | C33: 10569 | D33: 12329 | E33: 14355 | F33: 16295 | G33: 18700
A34: Total | B34: # | C34: =SUM(C30:C33) -> 15495 | D34: =SUM(D30:D33) -> 18031 | E34: =SUM(E30:E33) -> 20959 | F34: =SUM(F30:F33) -> 23749 | G34: =SUM(G30:G33) -> 27134
A35: Total Additions | B35: # | C35: =SUM(C27,C34) -> 23417 | D35: =SUM(D27,D34) -> 27429 | E35: =SUM(E27,E34) -> 32074 | F35: =SUM(F27,F34) -> 36368 | G35: =SUM(G27,G34) -> 41678
A37: Public Lights Disposals by Type
A39: NPL1 (Energex Owned & Operated)
A40: Major Conventional | B40: # | C40: 2013 | D40: 2332 | E40: 2700 | F40: 3018 | G40: 3398
A41: Minor Conventional | B41: # | C41: 5609 | D41: 6676 | E41: 7935 | F41: 9021 | G41: 10476
A42: Major LED | B42: # | C42: 0 | D42: 0 | E42: 0 | F42: 0 | G42: 0
A43: Minor LED | B43: # | C43: 0 | D43: 0 | E43: 0 | F43: 0 | G43: 0
A44: Total | B44: # | C44: =SUM(C40:C43) -> 7622 | D44: =SUM(D40:D43) -> 9008 | E44: =SUM(E40:E43) -> 10635 | F44: =SUM(F40:F43) -> 12039 | G44: =SUM(G40:G43) -> 13874
A46: NPL2 (Gifted & Energex Operated)
A47: Major Conventional (SV) | B47: # | C47: 3466 | D47: 4232 | E47: 5114 | F47: 5954 | G47: 6914
A48: Minor Conventional (SV) | B48: # | C48: 6964 | D48: 8694 | E48: 10690 | F48: 12600 | G48: 14975
A49: Major LED | B49: # | C49: 0 | D49: 0 | E49: 0 | F49: 0 | G49: 0
A50: Minor LED | B50: # | C50: 0 | D50: 0 | E50: 0 | F50: 0 | G50: 0
A51: Total | B51: # | C51: =SUM(C47:C50) -> 10430 | D51: =SUM(D47:D50) -> 12926 | E51: =SUM(E47:E50) -> 15804 | F51: =SUM(F47:F50) -> 18554 | G51: =SUM(G47:G50) -> 21889
A52: Total Disposals | B52: # | C52: =SUM(C44,C51) -> 18052 | D52: =SUM(D44,D51) -> 21934 | E52: =SUM(E44,E51) -> 26439 | F52: =SUM(F44,F51) -> 30593 | G52: =SUM(G44,G51) -> 35763
A55: Pricing Allocators
A56: Proportion of asset base related to refurbishment | B56: % | C56: 0.1
A57: Relativity Major to Minor
A58: Opex + tax | B58: # | C58: 1.5
A59: Asset charge | B59: # | C59: 1.8
A61: Price Smoothing Inputs
A62: Expected CPI | B62: % | C62: 0.0237
A63: WACC (Discount rate for smoothing) | B63: % | C63: 0.0467341872 | D63: 0.04540626022 | E63: 0.04407833323 | F63: 0.04275040625 | G63: 0.04142247927 | H63: Source: Public lighting PTRM
A64: X Factors | C64: P_0 | D64: X_02 | E64: X_03 | F64: X_04 | G64: X_05
A65: X factor Conventional | B65: % | C65: 0.04833752187 | D65: 0 | E65: 0 | F65: 0 | G65: 0 | H65: X factors for 2021-22 to 2024-25 in accordance with AER's Draft Decision for ACS
A66: X factor LED | B66: % | C66: 0.1234574777 | D66: 0 | E66: 0 | F66: 0 | G66: 0 | H66: X factors for 2021-22 to 2024-25 in accordance with AER's Draft Decision for ACS
A68: % of PLAB associated with Poles, cabling and some residual brackets | B68: % | C68: 0.7
A70: Million | C70: 1000000
A72: Price t-1 to be used for price smoothing
A74: NPL1 Conventional | D74: Source: Approved Energex's 2019-20 prices in the 2019-20 price schedule
A75: Major | B75: $/day/light Nominal | C75: 0.866 | D75: Used as starting point for smoothing in accordance with the formula in the Control Mechanism and ACS Draft Determination
A76: Minor | B76: $/day/light Nominal | C76: 0.398 | D76: Used as starting point for smoothing in accordance with the formula in the Control Mechanism and ACS Draft Determination
A78: NPL2 Conventional
A79: Major | B79: $/day/light Nominal | C79: 0.301 | D79: Used as starting point for smoothing in accordance with the formula in the Control Mechanism and ACS Draft Determination
A80: Minor | B80: $/day/light Nominal | C80: 0.146 | D80: Used as starting point for smoothing in accordance with the formula in the Control Mechanism and ACS Draft Determination
B82: Note: For LED the price smoothing starting point is 2020-21 as these are new tariffs which will be introduced from 1 July 2020

Sheet Public Lighting Pricing
A1: Public Lighting Price Calculations | B1: Units | C1: 2020-21 | D1: 2021-22 | E1: 2022-23 | F1: 2023-24 | G1: 2024-25
A3: Building Block Revenue - Linked to PL PTRM
A5: Opex Charge
A6: O&M Conventional | B6: $M Nominal | C6: 21.66125864 | D6: 21.05809435 | E6: 19.59059609 | F6: 17.78620987 | G6: 15.57859026 | I6: Updated reflecting the Energex 2020-25 - Revised Regulatory Proposal - Public Lighting PTRM CON - December 2019.xlsm
A7: O&M LED | B7: $M Nominal | C7: 0.5712203112 | D7: 1.158813853 | E7: 2.239598971 | F7: 3.620937051 | G7: 5.339844391 | I7: Updated reflecting the Energex 2020-25 - Revised Regulatory Proposal - Public Lighting PTRM LED - December 2019.xlsm
A8: Carry-over amounts Conventional | B8: $M Nominal | C8: 0 | D8: 0 | E8: 0 | F8: 0 | G8: 0
A9: Carry-over amounts LED | B9: $M Nominal | C9: 0 | D9: 0 | E9: 0 | F9: 0 | G9: 0
A10: Benchmark Tax liability Conventional | B10: $M Nominal | C10: 0 | D10: 0 | E10: 0 | F10: 0 | G10: 0 | I10: Updated reflecting the Energex 2020-25 - Revised Regulatory Proposal - Public Lighting PTRM CON - December 2019.xlsm
A11: Tax liability attributable to O&M Revenue | B11: $M Nominal | C11: 0 | D11: 0 | E11: 0 | F11: 0 | G11: 0
A12: Tax liability attributable to Capex Revenue | B12: $M Nominal | C12: 0 | D12: 0 | E12: 0 | F12: 0 | G12: 0
A13: Tax liability attributable to Gifted Assets | B13: $M Nominal | C13: 0 | D13: 0 | E13: 0 | F13: 0 | G13: 0
A14: Tax liability attributable to Contributed Assets | B14: $M Nominal | C14: 0 | D14: 0 | E14: 0 | F14: 0 | G14: 0
A15: Benchmark Tax liability LED | B15: $M Nominal | C15: 2.054680046 | D15: 1.896779797 | E15: 1.833135482 | F15: 1.796702552 | G15: 1.829388839 | I15: Updated reflecting the Energex 2020-25 - Revised Regulatory Proposal - Public Lighting PTRM CON - December 2019.xlsm
A16: Tax liability attributable to O&M Revenue | B16: $M Nominal | C16: 0 | D16: 0 | E16: 0 | F16: 0 | G16: 0
A17: Tax liability attributable to Capex Revenue | B17: $M Nominal | C17: 0 | D17: 0 | E17: 0 | F17: 0 | G17: 0
A18: Tax liability attributable to Gifted Assets | B18: $M Nominal | C18: 2.054680046 | D18: 1.896779797 | E18: 1.833135482 | F18: 1.796702552 | G18: 1.829388839
A19: Tax liability attributable to Contributed Assets | B19: $M Nominal | C19: 0 | D19: 0 | E19: 0 | F19: 0 | G19: 0
A20: Total Opex Charge Conventional | B20: $M Nominal | C20: =SUM(C6,C8)+C11+C6/(C6+C24+C25)*(C13+C14) -> 21.66125864 | D20: =SUM(D6,D8)+D11+D6/(D6+D24+D25)*(D13+D14) -> 21.05809435 | E20: 19.59059609 | F20: 17.78620987 | G20: 15.57859026
A21: Total Opex Charge LED | B21: $M Nominal | C21: =SUM(C7,C9)+C16+C7/(C7+C28+C29)*(C18+C19) -> 1.972663552 | D21: =SUM(D7,D9)+D16+D7/(D7+D28+D29)*(D18+D19) -> 1.93370147 | E21: 3.028641411 | F21: 4.432348969 | G21: 6.203629678
A23: Capex Charge Conventional | B23: Flag | C23: 1 | D23: 1 | E23: 1 | F23: 1 | G23: 1
A24: Return on capital | B24: $M Nominal | C24: 5.83363218 | D24: 5.381102309 | E24: 4.925317701 | F24: 4.461840739 | G24: 3.997521027 | I24: Updated reflecting the Energex 2020-25 - Revised Regulatory Proposal - Public Lighting PTRM CON - December 2019.xlsm
A25: Return of capital | B25: $M Nominal | C25: 8.160659681 | D25: 8.668298274 | E25: 9.19791538 | F25: 9.746884846 | G25: 10.32038057 | I25: Updated reflecting the Energex 2020-25 - Revised Regulatory Proposal - Public Lighting PTRM CON - December 2019.xlsm
A26: Total Capex Charge Conventional | B26: $M Nominal | C26: =(SUM(C24:C25)+C12+(C24+C25)/(C6+C24+C25)*(C13+C14))*C23 -> 13.99429186 | D26: =(SUM(D24:D25)+D12+(D24+D25)/(D6+D24+D25)*(D13+D14))*D23 -> 14.04940058 | E26: 14.12323308 | F26: 14.20872558 | G26: 14.3179016
A27: Capex Charge LED
A28: Return on capital | B28: $M Nominal | C28: 0.1109907765 | D28: 0.61788071 | E28: 1.017291894 | F28: 1.411142677 | G28: 1.788549259 | I28: Updated reflecting the Energex 2020-25 - Revised Regulatory Proposal - Public Lighting PTRM LED - December 2019.xlsm
A29: Return of capital | B29: $M Nominal | C29: 0.1552648379 | D29: 1.059864772 | E29: 1.946236533 | F29: 2.985730578 | G29: 4.180726664 | I29: Updated reflecting the Energex 2020-25 - Revised Regulatory Proposal - Public Lighting PTRM LED - December 2019.xlsm
A30: Total Capex Charge LED | B30: $M Nominal | C30: =(SUM(C28:C29)+C17+(C28+C29)/(C7+C28+C29)*(C18+C19))*C23 -> 0.9194924196 | D30: =(SUM(D28:D29)+D17+(D28+D29)/(D7+D28+D29)*(D18+D19))*D23 -> 2.799637662 | E30: 4.007621468 | F30: 5.382163889 | G30: 6.934879475
A32: ARR for Conventional | B32: $M Nominal | C32: =SUM(C20,C26) -> 35.6555505 | D32: =SUM(D20,D26) -> 35.10749494 | E32: 33.71382917 | F32: 31.99493545 | G32: 29.89649185
A33: ARR for LED | B33: $M Nominal | C33: =SUM(C21,C30) -> 2.892155972 | D33: =SUM(D21,D30) -> 4.733339132 | E33: 7.036262879 | F33: 9.814512859 | G33: 13.13850915
A34: ARR for Total | B34: $M Nominal | C34: =C32+C33 -> 38.54770647 | D34: =D32+D33 -> 39.84083407 | E34: =E32+E33 -> 40.75009204 | F34: =F32+F33 -> 41.80944831 | G34: =G32+G33 -> 43.03500101
A36: Opex and Capex Charge Components
A37: Opex Charge for Conventional Lights | B37: $M Nominal | C37: =C20 -> 21.66125864 | D37: 21.05809435 | E37: 19.59059609 | F37: 17.78620987 | G37: 15.57859026
A38: Opex Charge for LED | B38: $M Nominal | C38: 1.972663552 | D38: 1.93370147 | E38: 3.028641411 | F38: 4.432348969 | G38: 6.203629678
A39: Capex Charge for Conventional Lights | B39: $M Nominal | C39: =C26 -> 13.99429186 | D39: =D26 -> 14.04940058 | E39: 14.12323308 | F39: 14.20872558 | G39: 14.3179016
A40: Capex Charge for LED | B40: $M Nominal | C40: =C30 -> 0.9194924196 | D40: =D30 -> 2.799637662 | E40: =E30 -> 4.007621468 | F40: =F30 -> 5.382163889 | G40: =G30 -> 6.934879475
A42: Public Lights Population
A44: Opening Population Public Lights
A45: NPL1 (Energex Owned & Operated)
A46: Major Conventional | B46: # | C46: ='Input Data'!C6 -> 39792 | D46: ='Input Data'!D6 -> 38167 | E46: ='Input Data'!E6 -> 34942 | F46: ='Input Data'!F6 -> 31178 | G46: ='Input Data'!G6 -> 26852
A47: Minor Conventional | B47: # | C47: ='Input Data'!C7 -> 102272 | D47: ='Input Data'!D7 -> 98545 | E47: ='Input Data'!E7 -> 90920 | F47: ='Input Data'!F7 -> 81894 | G47: ='Input Data'!G7 -> 71336
A48: Major LED | B48: # | C48: ='Input Data'!C8 -> 2639 | D48: ='Input Data'!D8 -> 4944 | E48: ='Input Data'!E8 -> 8875 | F48: ='Input Data'!F8 -> 13376 | G48: ='Input Data'!G8 -> 18466
A49: Minor LED | B49: # | C49: ='Input Data'!C9 -> 6230 | D49: ='Input Data'!D9 -> 11713 | E49: ='Input Data'!E9 -> 21127 | F49: ='Input Data'!F9 -> 31978 | G49: ='Input Data'!G9 -> 44393
A50: Total | B50: # | C50: =SUM(C46:C49) -> 150933 | D50: =SUM(D46:D49) -> 153369 | E50: =SUM(E46:E49) -> 155864 | F50: =SUM(F46:F49) -> 158426 | G50: =SUM(G46:G49) -> 161047
A52: NPL2 (Gifted & Energex Operated)
A53: Major Conventional | B53: # | C53: ='Input Data'!C13 -> 48914 | D53: ='Input Data'!D13 -> 46917 | E53: ='Input Data'!E13 -> 42953 | F53: ='Input Data'!F13 -> 38324 | G53: ='Input Data'!G13 -> 33008
A54: Minor Conventional | B54: # | C54: ='Input Data'!C14 -> 125716 | D54: ='Input Data'!D14 -> 121136 | E54: ='Input Data'!E14 -> 111763 | F54: ='Input Data'!F14 -> 100667 | G54: ='Input Data'!G14 -> 87689
A55: Major LED | B55: # | C55: ='Input Data'!C15 -> 3245 | D55: ='Input Data'!D15 -> 6077 | E55: ='Input Data'!E15 -> 10910 | F55: ='Input Data'!F15 -> 16442 | G55: ='Input Data'!G15 -> 22699
A56: Minor LED | B56: # | C56: ='Input Data'!C16 -> 7659 | D56: ='Input Data'!D16 -> 14398 | E56: ='Input Data'!E16 -> 25971 | F56: ='Input Data'!F16 -> 39308 | G56: ='Input Data'!G16 -> 54569
A57: Total | B57: # | C57: =SUM(C53:C56) -> 185534 | D57: =SUM(D53:D56) -> 188528 | E57: =SUM(E53:E56) -> 191597 | F57: =SUM(F53:F56) -> 194741 | G57: =SUM(G53:G56) -> 197965
A58: Total Opening Lights | B58: # | C58: =SUM(C50,C57) -> 336467 | D58: =SUM(D50,D57) -> 341897 | E58: =SUM(E50,E57) -> 347461 | F58: =SUM(F50,F57) -> 353167 | G58: =SUM(G50,G57) -> 359012
A60: Plus Additions
A61: NPL1 (Energex Owned & Operated)
A62: Major Conventional | B62: # | C62: ='Input Data'!C23 -> 0 | D62: 0 | E62: 0 | F62: 0 | G62: 0
A63: Minor Conventional | B63: # | C63: ='Input Data'!C24 -> 0 | D63: 0 | E63: 0 | F63: 0 | G63: 0
A64: Major LED | B64: # | C64: ='Input Data'!C25 -> 2043 | D64: ='Input Data'!D25 -> 2402 | E64: ='Input Data'!E25 -> 2820 | F64: ='Input Data'!F25 -> 3188 | G64: ='Input Data'!G25 -> 3618
A65: Minor LED | B65: # | C65: ='Input Data'!C26 -> 5879 | D65: ='Input Data'!D26 -> 6996 | E65: ='Input Data'!E26 -> 8295 | F65: ='Input Data'!F26 -> 9431 | G65: ='Input Data'!G26 -> 10926
A66: Total | B66: # | C66: =SUM(C62:C65) -> 7922 | D66: =SUM(D62:D65) -> 9398 | E66: =SUM(E62:E65) -> 11115 | F66: =SUM(F62:F65) -> 12619 | G66: =SUM(G62:G65) -> 14544
A68: NPL2 (Gifted & Energex Operated)
A69: Major Conventional | B69: # | C69: ='Input Data'!C30 -> 0 | D69: ='Input Data'!D30 -> 0 | E69: ='Input Data'!E30 -> 0 | F69: ='Input Data'!F30 -> 0 | G69: ='Input Data'!G30 -> 0
A70: Minor Conventional | B70: # | C70: ='Input Data'!C31 -> 0 | D70: ='Input Data'!D31 -> 0 | E70: ='Input Data'!E31 -> 0 | F70: ='Input Data'!F31 -> 0 | G70: ='Input Data'!G31 -> 0
A71: Major LED | B71: # | C71: ='Input Data'!C32 -> 4926 | D71: ='Input Data'!D32 -> 5702 | E71: ='Input Data'!E32 -> 6604 | F71: ='Input Data'!F32 -> 7454 | G71: ='Input Data'!G32 -> 8434
A72: Minor LED | B72: # | C72: ='Input Data'!C33 -> 10569 | D72: ='Input Data'!D33 -> 12329 | E72: ='Input Data'!E33 -> 14355 | F72: ='Input Data'!F33 -> 16295 | G72: ='Input Data'!G33 -> 18700
A73: Total | B73: # | C73: =SUM(C69:C72) -> 15495 | D73: =SUM(D69:D72) -> 18031 | E73: =SUM(E69:E72) -> 20959 | F73: =SUM(F69:F72) -> 23749 | G73: =SUM(G69:G72) -> 27134
A74: Total Additions | B74: # | C74: =SUM(C66,C73) -> 23417 | D74: =SUM(D66,D73) -> 27429 | E74: =SUM(E66,E73) -> 32074 | F74: =SUM(F66,F73) -> 36368 | G74: =SUM(G66,G73) -> 41678
A76: Less Disposals
A77: NPL1 (Energex Owned & Operated)
A78: Major Conventional | B78: # | C78: ='Input Data'!C40 -> 2013 | D78: ='Input Data'!D40 -> 2332 | E78: ='Input Data'!E40 -> 2700 | F78: ='Input Data'!F40 -> 3018 | G78: ='Input Data'!G40 -> 3398
A79: Minor Conventional | B79: # | C79: ='Input Data'!C41 -> 5609 | D79: ='Input Data'!D41 -> 6676 | E79: ='Input Data'!E41 -> 7935 | F79: ='Input Data'!F41 -> 9021 | G79: ='Input Data'!G41 -> 10476
A80: Major LED | B80: # | C80: ='Input Data'!C42 -> 0 | D80: ='Input Data'!D42 -> 0 | E80: ='Input Data'!E42 -> 0 | F80: ='Input Data'!F42 -> 0 | G80: ='Input Data'!G42 -> 0
A81: Minor LED | B81: # | C81: ='Input Data'!C43 -> 0 | D81: ='Input Data'!D43 -> 0 | E81: ='Input Data'!E43 -> 0 | F81: ='Input Data'!F43 -> 0 | G81: ='Input Data'!G43 -> 0
A82: Total | B82: # | C82: =SUM(C78:C81) -> 7622 | D82: =SUM(D78:D81) -> 9008 | E82: =SUM(E78:E81) -> 10635 | F82: =SUM(F78:F81) -> 12039 | G82: =SUM(G78:G81) -> 13874
A84: NPL2 (Gifted & Energex Operated)
A85: Major Conventional | B85: # | C85: ='Input Data'!C47 -> 3466 | D85: ='Input Data'!D47 -> 4232 | E85: ='Input Data'!E47 -> 5114 | F85: ='Input Data'!F47 -> 5954 | G85: ='Input Data'!G47 -> 6914
A86: Minor Conventional | B86: # | C86: ='Input Data'!C48 -> 6964 | D86: ='Input Data'!D48 -> 8694 | E86: ='Input Data'!E48 -> 10690 | F86: ='Input Data'!F48 -> 12600 | G86: ='Input Data'!G48 -> 14975
A87: Major LED | B87: # | C87: ='Input Data'!C49 -> 0 | D87: ='Input Data'!D49 -> 0 | E87: ='Input Data'!E49 -> 0 | F87: ='Input Data'!F49 -> 0 | G87: ='Input Data'!G49 -> 0
A88: Minor LED | B88: # | C88: ='Input Data'!C50 -> 0 | D88: ='Input Data'!D50 -> 0 | E88: ='Input Data'!E50 -> 0 | F88: ='Input Data'!F50 -> 0 | G88: ='Input Data'!G50 -> 0
A89: Total | B89: # | C89: =SUM(C85:C88) -> 10430 | D89: =SUM(D85:D88) -> 12926 | E89: =SUM(E85:E88) -> 15804 | F89: =SUM(F85:F88) -> 18554 | G89: =SUM(G85:G88) -> 21889
A90: Total Disposals | B90: # | C90: =SUM(C82,C89) -> 18052 | D90: =SUM(D82,D89) -> 21934 | E90: =SUM(E82,E89) -> 26439 | F90: =SUM(F82,F89) -> 30593 | G90: =SUM(G82,G89) -> 35763
A92: Closing Population Public Lights
A93: NPL1 (Energex Owned & Operated)
A94: Major Conventional | B94: # | C94: =(C46+C62-C78) -> 37779 | D94: 35835 | E94: 32242 | F94: 28160 | G94: 23454
A95: Minor Conventional | B95: # | C95: 96663 | D95: 91869 | E95: 82985 | F95: 72873 | G95: 60860
A96: Major LED | B96: # | C96: 4682 | D96: 7346 | E96: 11695 | F96: 16564 | G96: 22084
A97: Minor LED | B97: # | C97: 12109 | D97: 18709 | E97: 29422 | F97: 41409 | G97: 55319
A98: Total | B98: # | C98: =SUM(C94:C97) -> 151233 | D98: =SUM(D94:D97) -> 153759 | E98: =SUM(E94:E97) -> 156344 | F98: =SUM(F94:F97) -> 159006 | G98: =SUM(G94:G97) -> 161717
A100: NPL2 (Gifted & Energex Operated)
A101: Major Conventional | B101: # | C101: =(C53+C69-C85) -> 45448 | D101: 42685 | E101: 37839 | F101: 32370 | G101: 26094
A102: Minor Conventional | B102: # | C102: 118752 | D102: 112442 | E102: 101073 | F102: 88067 | G102: 72714
A103: Major LED | B103: # | C103: 8171 | D103: 11779 | E103: 17514 | F103: 23896 | G103: 31133
A104: Minor LED | B104: # | C104: 18228 | D104: 26727 | E104: 40326 | F104: 55603 | G104: 73269
A105: Total | B105: # | C105: =SUM(C101:C104) -> 190599 | D105: =SUM(D101:D104) -> 193633 | E105: =SUM(E101:E104) -> 196752 | F105: =SUM(F101:F104) -> 199936 | G105: =SUM(G101:G104) -> 203210
A106: Grand Total | B106: # | C106: =SUM(C98,C105) -> 341832 | D106: =SUM(D98,D105) -> 347392 | E106: =SUM(E98,E105) -> 353096 | F106: =SUM(F98,F105) -> 358942 | G106: =SUM(G98,G105) -> 364927
A108: Average No of Lights
A109: NPL1 (Energex Owned & Operated)
A110: Major Conventional | B110: # | C110: =AVERAGE(C46,C94) -> 38785.5 | D110: =AVERAGE(D46,D94) -> 37001 | E110: 33592 | F110: 29669 | G110: 25153
A111: Minor Conventional | B111: # | C111: =AVERAGE(C47,C95) -> 99467.5 | D111: 95207 | E111: 86952.5 | F111: 77383.5 | G111: 66098
A112: Major LED | B112: # | C112: 3660.5 | D112: 6145 | E112: 10285 | F112: 14970 | G112: 20275
A113: Minor LED | B113: # | C113: 9169.5 | D113: 15211 | E113: 25274.5 | F113: 36693.5 | G113: 49856
A114: Total | B114: # | C114: =SUM(C110:C113) -> 151083 | D114: =SUM(D110:D113) -> 153564 | E114: =SUM(E110:E113) -> 156104 | F114: =SUM(F110:F113) -> 158716 | G114: =SUM(G110:G113) -> 161382
A116: NPL2 (Gifted & Energex Operated)
A117: Major Conventional | B117: # | C117: =AVERAGE(C53,C101) -> 47181 | D117: 44801 | E117: 40396 | F117: 35347 | G117: 29551
A118: Minor Conventional | B118: # | C118: 122234 | D118: 116789 | E118: 106418 | F118: 94367 | G118: 80201.5
A119: Major LED | B119: # | C119: 5708 | D119: 8928 | E119: 14212 | F119: 20169 | G119: 26916
A120: Minor LED | B120: # | C120: 12943.5 | D120: 20562.5 | E120: 33148.5 | F120: 47455.5 | G120: 63919
A121: Total | B121: # | C121: =SUM(C117:C120) -> 188066.5 | D121: =SUM(D117:D120) -> 191080.5 | E121: =SUM(E117:E120) -> 194174.5 | F121: =SUM(F117:F120) -> 197338.5 | G121: =SUM(G117:G120) -> 200587.5
A122: Grand total | B122: # | C122: =SUM(C114,C121) -> 339149.5 | D122: =SUM(D114,D121) -> 344644.5 | E122: =SUM(E114,E121) -> 350278.5 | F122: =SUM(F114,F121) -> 356054.5 | G122: =SUM(G114,G121) -> 361969.5
A124: 2020-25 TSS Pricing Methodology
A125: Major Conventional | B125: # | C125: =SUM(C110+C117) -> 85966.5 | D125: =SUM(D110+D117) -> 81802 | E125: 73988 | F125: 65016 | G125: 54704
A126: Minor Conventional | B126: # | C126: 221701.5 | D126: 211996 | E126: 193370.5 | F126: 171750.5 | G126: 146299.5
A127: Major LED | B127: # | C127: 9368.5 | D127: 15073 | E127: 24497 | F127: 35139 | G127: 47191
A128: Minor LED | B128: # | C128: 22113 | D128: 35773.5 | E128: 58423 | F128: 84149 | G128: 113775
A129: Total | B129: # | C129: =SUM(C125:C128) -> 339149.5 | D129: =SUM(D125:D128) -> 344644.5 | E129: =SUM(E125:E128) -> 350278.5 | F129: =SUM(F125:F128) -> 356054.5 | G129: =SUM(G125:G128) -> 361969.5
A131: Weighted Average No of Lights
A132: Major Conventional | C132: =ROUND(C125*'Input Data'!$C$59,0) -> 154740 | D132: =ROUND(D125*'Input Data'!$C$59,0) -> 147244 | E132: =ROUND(E125*'Input Data'!$C$59,0) -> 133178 | F132: =ROUND(F125*'Input Data'!$C$59,0) -> 117029 | G132: =ROUND(G125*'Input Data'!$C$59,0) -> 98467
A133: Minor Conventional | C133: =C126 -> 221701.5 | D133: =D126 -> 211996 | E133: =E126 -> 193370.5 | F133: =F126 -> 171750.5 | G133: =G126 -> 146299.5
A134: Major LED | C134: =ROUND(C127*'Input Data'!$C$59,0) -> 16863 | D134: =ROUND(D127*'Input Data'!$C$59,0) -> 27131 | E134: =ROUND(E127*'Input Data'!$C$59,0) -> 44095 | F134: =ROUND(F127*'Input Data'!$C$59,0) -> 63250 | G134: =ROUND(G127*'Input Data'!$C$59,0) -> 84944
A135: Minor LED | C135: =C128 -> 22113 | D135: =D128 -> 35773.5 | E135: =E128 -> 58423 | F135: =F128 -> 84149 | G135: =G128 -> 113775
A136: Total | C136: =SUM(C132:C135) -> 415417.5 | D136: =SUM(D132:D135) -> 422144.5 | E136: =SUM(E132:E135) -> 429066.5 | F136: =SUM(F132:F135) -> 436178.5 | G136: =SUM(G132:G135) -> 443485.5
A138: Price Components
A140: Opex Charge
A141: NPL1 (Energex Owned & Operated)
A142: Major Conventional | B142: $/light Nominal | C142: =C$37*Million/(C$125+C$126/'Input Data'!$C$58) -> 92.66154894 | D142: =D$37*Million/(D$125+D$126/'Input Data'!$C$58) -> 94.37477116 | E142: =E$37*Million/(E$125+E$126/'Input Data'!$C$58) -> 96.55216937 | F142: =F$37*Million/(F$125+F$126/'Input Data'!$C$58) -> 99.07850467 | G142: =G$37*Million/(G$125+G$126/'Input Data'!$C$58) -> 102.3311695
A143: Minor Conventional | B143: $/light Nominal | C143: =C142/'Input Data'!$C$58 -> 61.77436596 | D143: =D142/'Input Data'!$C$58 -> 62.91651411 | E143: =E142/'Input Data'!$C$58 -> 64.36811291 | F143: =F142/'Input Data'!$C$58 -> 66.05233644 | G143: =G142/'Input Data'!$C$58 -> 68.2207797
A144: Major LED | B144: $/light Nominal | C144: =C$38*Million/(C$127+C$128/'Input Data'!$C$58) -> 81.81761275 | D144: =D$38*Million/(D$127+D$128/'Input Data'!$C$58) -> 49.68145187 | E144: =E$38*Million/(E$127+E$128/'Input Data'!$C$58) -> 47.7359853 | F144: =F$38*Million/(F$127+F$128/'Input Data'!$C$58) -> 48.57989846 | G144: =G$38*Million/(G$127+G$128/'Input Data'!$C$58) -> 50.41920724
A145: Minor LED | B145: $/light Nominal | C145: =C144/'Input Data'!$C$58 -> 54.54507517 | D145: =D144/'Input Data'!$C$58 -> 33.12096792 | E145: =E144/'Input Data'!$C$58 -> 31.8239902 | F145: =F144/'Input Data'!$C$58 -> 32.38659897 | G145: =G144/'Input Data'!$C$58 -> 33.61280483
A147: NPL2 (Gifted & Energex Operated)
A148: Major Conventional | B148: $/light Nominal | C148: =C142 -> 92.66154894 | D148: =D142 -> 94.37477116 | E148: 96.55216937 | F148: 99.07850467 | G148: 102.3311695 | I148: Opex NPL2 is set equal to Opex NPL1
A149: Minor Conventional | B149: $/light Nominal | C149: 61.77436596 | D149: 62.91651411 | E149: 64.36811291 | F149: 66.05233644 | G149: 68.2207797 | I149: Opex NPL2 is set equal to Opex NPL1
A150: Major LED | B150: $/light Nominal | C150: 81.81761275 | D150: 49.68145187 | E150: 47.7359853 | F150: 48.57989846 | G150: 50.41920724 | I150: Opex NPL2 is set equal to Opex NPL1
A151: Minor LED | B151: $/light Nominal | C151: 54.54507517 | D151: 33.12096792 | E151: 31.8239902 | F151: 32.38659897 | G151: 33.61280483 | I151: Opex NPL2 is set equal to Opex NPL1
A153: Capex Charge
A154: NPL1 (Energex Owned & Operated)
A155: Major Conventional | B155: $/light Nominal | C155: =C$39*Million/(C$110+C$111/'Input Data'!$C$59)*(1-'Input Data'!$C$56) -> 133.9234719 | D155: =D$39*Million/(D$110+D$111/'Input Data'!$C$59)*(1-'Input Data'!$C$56) -> 140.6600194 | E155: =E$39*Million/(E$110+E$111/'Input Data'!$C$59)*(1-'Input Data'!$C$56) -> 155.2023638 | F155: =F$39*Million/(F$110+F$111/'Input Data'!$C$59)*(1-'Input Data'!$C$56) -> 175.9961789 | G155: =G$39*Million/(G$110+G$111/'Input Data'!$C$59)*(1-'Input Data'!$C$56) -> 208.2633787
A156: Minor Conventional | B156: $/light Nominal | C156: =ROUND(C155/'Input Data'!$C$59,2) -> 74.4 | D156: =ROUND(D155/'Input Data'!$C$59,2) -> 78.14 | E156: =ROUND(E155/'Input Data'!$C$59,2) -> 86.22 | F156: =ROUND(F155/'Input Data'!$C$59,2) -> 97.78 | G156: =ROUND(G155/'Input Data'!$C$59,2) -> 115.7
A157: Major LED | B157: $/light Nominal | C157: =C$40*Million/(C$112+C$113/'Input Data'!$C$59)*(1-'Input Data'!$C$56) -> 94.52594932 | D157: =D$40*Million/(D$112+D$113/'Input Data'!$C$59)*(1-'Input Data'!$C$56) -> 172.6329557 | E157: =E$40*Million/(E$112+E$113/'Input Data'!$C$59)*(1-'Input Data'!$C$56) -> 148.2694097 | F157: =F$40*Million/(F$112+F$113/'Input Data'!$C$59)*(1-'Input Data'!$C$56) -> 137.0077625 | G157: =G$40*Million/(G$112+G$113/'Input Data'!$C$59)*(1-'Input Data'!$C$56) -> 130.1027753
A158: Minor LED | B158: $/light Nominal | C158: =ROUND(C157/'Input Data'!$C$59,2) -> 52.51 | D158: =ROUND(D157/'Input Data'!$C$59,2) -> 95.91 | E158: =ROUND(E157/'Input Data'!$C$59,2) -> 82.37 | F158: =ROUND(F157/'Input Data'!$C$59,2) -> 76.12 | G158: =ROUND(G157/'Input Data'!$C$59,2) -> 72.28
A160: NPL2 (Gifted & Energex Operated)
A161: Major Conventional | B161: $/light Nominal | C161: 0 | D161: 0 | E161: 0 | F161: 0 | G161: 0 | I161: Capex is not allocated to NPL2
A162: Minor Conventional | B162: $/light Nominal | C162: 0 | D162: 0 | E162: 0 | F162: 0 | G162: 0
A163: Major LED | B163: $/light Nominal | C163: 0 | D163: 0 | E163: 0 | F163: 0 | G163: 0
A164: Minor LED | B164: $/light Nominal | C164: 0 | D164: 0 | E164: 0 | F164: 0 | G164: 0
A166: Refurbishment Charge
A167: NPL1 (Energex Owned & Operated)
A168: Major Conventional | B168: $/light Nominal | C168: =C$39*Million/(C$125+C$126/'Input Data'!$C$59)*'Input Data'!$C$56 -> 6.691543154 | D168: =D$39*Million/(D$125+D$126/'Input Data'!$C$59)*'Input Data'!$C$56 -> 7.039569426 | E168: =E$39*Million/(E$125+E$126/'Input Data'!$C$59)*'Input Data'!$C$56 -> 7.784996227 | F168: =F$39*Million/(F$125+F$126/'Input Data'!$C$59)*'Input Data'!$C$56 -> 8.856488693 | G168: =G$39*Million/(G$125+G$126/'Input Data'!$C$59)*'Input Data'!$C$56 -> 10.52930111
A169: Minor Conventional | B169: $/light Nominal | C169: =ROUND(C168/'Input Data'!$C$59,2) -> 3.72 | D169: =ROUND(D168/'Input Data'!$C$59,2) -> 3.91 | E169: =ROUND(E168/'Input Data'!$C$59,2) -> 4.32 | F169: =ROUND(F168/'Input Data'!$C$59,2) -> 4.92 | G169: =ROUND(G168/'Input Data'!$C$59,2) -> 5.85
A170: Major LED | B170: $/light Nominal | C170: =C$40*Million/(C$125+C$126/'Input Data'!$C$59)*'Input Data'!$C$56 -> 0.4396666346 | D170: =D$40*Million/(D$125+D$126/'Input Data'!$C$59)*'Input Data'!$C$56 -> 1.402781818 | E170: =E$40*Million/(E$125+E$126/'Input Data'!$C$59)*'Input Data'!$C$56 -> 2.209077612 | F170: =F$40*Million/(F$125+F$126/'Input Data'!$C$59)*'Input Data'!$C$56 -> 3.354774737 | G170: =G$40*Million/(G$125+G$126/'Input Data'!$C$59)*'Input Data'!$C$56 -> 5.099869817
A171: Minor LED | B171: $/light Nominal | C171: =ROUND(C170/'Input Data'!$C$59,2) -> 0.24 | D171: =ROUND(D170/'Input Data'!$C$59,2) -> 0.78 | E171: =ROUND(E170/'Input Data'!$C$59,2) -> 1.23 | F171: =ROUND(F170/'Input Data'!$C$59,2) -> 1.86 | G171: =ROUND(G170/'Input Data'!$C$59,2) -> 2.83
A173: NPL2 (Gifted & Energex Operated)
A174: Major Conventional | B174: $/light Nominal | C174: =C168 -> 6.691543154 | D174: 7.039569426 | E174: 7.784996227 | F174: 8.856488693 | G174: 10.52930111
A175: Minor Conventional | B175: $/light Nominal | C175: 3.72 | D175: 3.91 | E175: 4.32 | F175: 4.92 | G175: 5.85
A176: Major LED | B176: $/light Nominal | C176: 0.4396666346 | D176: 1.402781818 | E176: 2.209077612 | F176: 3.354774737 | G176: 5.099869817
A177: Minor LED | B177: $/light Nominal | C177: 0.24 | D177: 0.78 | E177: 1.23 | F177: 1.86 | G177: 2.83
A179: Pricing Days in Year | B179: # | C179: 365.25 | D179: 365.25 | E179: 365.25 | F179: 365.25 | G179: 365.25
A181: Unsmoothed Prices
A183: NPL1 (Energex Owned & Operated)
A184: Major Conventional | B184: $/day/light Nominal | C184: =SUM(C142,C155,C168)/C$179 -> 0.6386764243 | D184: 0.662763477 | E184: 0.7105805049 | F184: 0.7773611835 | G184: 0.8791891838
A185: Minor Conventional | B185: $/day/light Nominal | C185: 0.3830099 | D185: 0.3968966848 | E185: 0.4241152989 | F185: 0.4620187172 | G185: 0.5195640786
A186: Major LED | B186: $/day/light Nominal | C186: 0.4840061019 | D186: 0.6125042832 | E186: 0.5426816499 | F186: 0.5172961963 | G186: 0.5082049346
A187: Minor LED | B187: $/day/light Nominal | C187: 0.293757906 | D187: 0.3554030607 | E187: 0.3160136624 | F187: 0.3021672799 | G187: 0.2976668168
A189: NPL2 (Gifted & Energex Operated)
A190: Major Conventional | B190: $/day/light Nominal | C190: =SUM(C148,C174)/C$179 -> 0.2720139414 | D190: =SUM(D148,D174)/D$179 -> 0.2776573322 | E190: 0.285659591 | F190: 0.2955099065 | G190: 0.3089951284
A191: Minor Conventional | B191: $/day/light Nominal | C191: 0.1793138014 | D191: 0.1829610242 | E191: 0.188057804 | F191: 0.1943116672 | G191: 0.2027947425
A192: Major LED | B192: $/day/light Nominal | C192: 0.2252081571 | D192: 0.1398610094 | E192: 0.1367421298 | F192: 0.1421893859 | G192: 0.1520029488
A193: Minor LED | B193: $/day/light Nominal | C193: 0.1499933612 | D193: 0.0928157917 | E193: 0.09049689308 | F193: 0.09376207796 | G193: 0.09977496188
A195: NPL4 (Gifted & Ergon Operated)
A196: Major LED | B196: $/day/light Nominal | C196: =(C192*0.9)+((C186-C192)*0.7) -> 0.3838459027 | D196: =(D192*0.9)+((D186-D192)*0.7) -> 0.4567252001 | E196: 0.4072255809 | F196: 0.3905452146 | G196: 0.386144044
A197: Minor LED | B197: $/day/light Nominal | C197: =(C193*0.9)+((C187-C193)*0.7) -> 0.2356292064 | D197: 0.2673453008 | E197: 0.2393089423 | F197: 0.2302695115 | G197: 0.2283217641
A200: Smoothed Prices
A202: NPL1 (Energex Owned & Operated)
A203: Major Conventional | B203: $/day/light Nominal | C203: =ROUND('Input Data'!C75*(1+'Input Data'!$C$62)*(1-'Input Data'!C$65),5) -> 0.84367 | D203: =ROUND(C203*(1+'Input Data'!$C$62)*(1-'Input Data'!D$65),5) -> 0.86366 | E203: =ROUND(D203*(1+'Input Data'!$C$62)*(1-'Input Data'!E$65),5) -> 0.88413 | F203: =ROUND(E203*(1+'Input Data'!$C$62)*(1-'Input Data'!F$65),5) -> 0.90508 | G203: =ROUND(F203*(1+'Input Data'!$C$62)*(1-'Input Data'!G$65),5) -> 0.92653
A204: Minor Conventional | B204: $/day/light Nominal | C204: =ROUND('Input Data'!C76*(1+'Input Data'!$C$62)*(1-'Input Data'!C$65),5) -> 0.38774 | D204: =ROUND(C204*(1+'Input Data'!$C$62)*(1-'Input Data'!D$65),5) -> 0.39693 | E204: =ROUND(D204*(1+'Input Data'!$C$62)*(1-'Input Data'!E$65),5) -> 0.40634 | F204: =ROUND(E204*(1+'Input Data'!$C$62)*(1-'Input Data'!F$65),5) -> 0.41597 | G204: =ROUND(F204*(1+'Input Data'!$C$62)*(1-'Input Data'!G$65),5) -> 0.42583
A205: Major LED | B205: $/day/light Nominal | C205: =ROUND(C186*(1-'Input Data'!$C$66),5) -> 0.42425 | D205: =ROUND(C205*(1+'Input Data'!$C$62)*(1-'Input Data'!D$66),5) -> 0.4343 | E205: =ROUND(D205*(1+'Input Data'!$C$62)*(1-'Input Data'!E$66),5) -> 0.44459 | F205: =ROUND(E205*(1+'Input Data'!$C$62)*(1-'Input Data'!F$66),5) -> 0.45513 | G205: =ROUND(F205*(1+'Input Data'!$C$62)*(1-'Input Data'!G$66),5) -> 0.46592
A206: Minor LED | B206: $/day/light Nominal | C206: =ROUND(C187*(1-'Input Data'!$C$66),5) -> 0.25749 | D206: =ROUND(C206*(1+'Input Data'!$C$62)*(1-'Input Data'!$D$66),5) -> 0.26359 | E206: =ROUND(D206*(1+'Input Data'!$C$62)*(1-'Input Data'!$D$66),5) -> 0.26984 | F206: =ROUND(E206*(1+'Input Data'!$C$62)*(1-'Input Data'!$D$66),5) -> 0.27624 | G206: =ROUND(F206*(1+'Input Data'!$C$62)*(1-'Input Data'!$D$66),5) -> 0.28279
A208: NPL2 (Gifted & Energex Operated)
A209: Major Conventional | B209: $/day/light Nominal | C209: =ROUND('Input Data'!C79*(1+'Input Data'!$C$62)*(1-'Input Data'!C$65),5) -> 0.29324 | D209: =ROUND(C209*(1+'Input Data'!$C$62)*(1-'Input Data'!D$65),5) -> 0.30019 | E209: =ROUND(D209*(1+'Input Data'!$C$62)*(1-'Input Data'!E$65),5) -> 0.3073 | F209: =ROUND(E209*(1+'Input Data'!$C$62)*(1-'Input Data'!F$65),5) -> 0.31458 | G209: =ROUND(F209*(1+'Input Data'!$C$62)*(1-'Input Data'!G$65),5) -> 0.32204
A210: Minor Conventional | B210: $/day/light Nominal | C210: =ROUND('Input Data'!C80*(1+'Input Data'!$C$62)*(1-'Input Data'!C$65),5) -> 0.14224 | D210: =ROUND(C210*(1+'Input Data'!$C$62)*(1-'Input Data'!D$65),5) -> 0.14561 | E210: =ROUND(D210*(1+'Input Data'!$C$62)*(1-'Input Data'!E$65),5) -> 0.14906 | F210: =ROUND(E210*(1+'Input Data'!$C$62)*(1-'Input Data'!F$65),5) -> 0.15259 | G210: =ROUND(F210*(1+'Input Data'!$C$62)*(1-'Input Data'!G$65),5) -> 0.15621
A211: Major LED | B211: $/day/light Nominal | C211: =ROUND(C192*(1-'Input Data'!$C$66),5) -> 0.1974 | D211: =ROUND(C211*(1+'Input Data'!$C$62)*(1-'Input Data'!D$66),5) -> 0.20208 | E211: =ROUND(D211*(1+'Input Data'!$C$62)*(1-'Input Data'!E$66),5) -> 0.20687 | F211: =ROUND(E211*(1+'Input Data'!$C$62)*(1-'Input Data'!F$66),5) -> 0.21177 | G211: =ROUND(F211*(1+'Input Data'!$C$62)*(1-'Input Data'!G$66),5) -> 0.21679
A212: Minor LED | B212: $/day/light Nominal | C212: =ROUND(C193*(1-'Input Data'!$C$66),5) -> 0.13148 | D212: =ROUND(C212*(1+'Input Data'!$C$62)*(1-'Input Data'!D$66),5) -> 0.1346 | E212: =ROUND(D212*(1+'Input Data'!$C$62)*(1-'Input Data'!E$66),5) -> 0.13779 | F212: =ROUND(E212*(1+'Input Data'!$C$62)*(1-'Input Data'!F$66),5) -> 0.14106 | G212: =ROUND(F212*(1+'Input Data'!$C$62)*(1-'Input Data'!G$66),5) -> 0.1444
A214: NPL4 (Gifted & Ergon Operated)
A215: Major LED | B215: $/day/light Nominal | C215: =(C211*0.9)+((C205-C211)*0.7) -> 0.336455 | D215: =(D211*0.9)+((D205-D211)*0.7) -> 0.344426 | E215: 0.352587 | F215: 0.360945 | G215: 0.369502
A216: Minor LED | B216: $/day/light Nominal | C216: =(C212*0.9)+((C206-C212)*0.7) -> 0.206539 | D216: =(D212*0.9)+((D206-D212)*0.7) -> 0.211433 | E216: 0.216446 | F216: 0.22158 | G216: 0.226833
A218: Recovered Revenue
A219: 1 + WACC | C219: =1+'Input Data'!C63 -> 1.046734187 | D219: =1+'Input Data'!D63 -> 1.04540626 | E219: =1+'Input Data'!E63 -> 1.044078333 | F219: =1+'Input Data'!F63 -> 1.042750406 | G219: =1+'Input Data'!G63 -> 1.041422479
A220: Recovered revenue Conventional | B220: $M Nominal | C220: =(SUMPRODUCT(C203:C204,C110:C111)+SUMPRODUCT(C209:C210,C117:C118))*C179/Million -> 37.44236622 | D220: =(SUMPRODUCT(D203:D204,D110:D111)+SUMPRODUCT(D209:D210,D117:D118))*D179/Million -> 36.59850899 | E220: =(SUMPRODUCT(E203:E204,E110:E111)+SUMPRODUCT(E209:E210,E117:E118))*E179/Million -> 34.08086815 | F220: =(SUMPRODUCT(F203:F204,F110:F111)+SUMPRODUCT(F209:F210,F117:F118))*F179/Million -> 30.88588801 | G220: =(SUMPRODUCT(G203:G204,G110:G111)+SUMPRODUCT(G209:G210,G117:G118))*G179/Million -> 26.84456039
A221: NPV of recovered revenue Conventional | B221: $M Nominal | C221: =SUMPRODUCT(C220:G220, C230:G230) -> 146.6089178
A222: NPV of revenue requirement Conventional | B222: $M Nominal | C222: =SUMPRODUCT(C32:G32, C230:G230) -> 146.6088441
A223: Difference Conventional | B223: $M Nominal | C223: =C221-C222 -> 7.370207072e-05
A225: Recovered revenue LED | B225: $M Nominal | C225: =(SUMPRODUCT(C205:C206,C112:C113)+SUMPRODUCT(C211:C212,C119:C120))*C179/Million -> 2.462731823 | D225: =(SUMPRODUCT(D205:D206,D112:D113)+SUMPRODUCT(D211:D212,D119:D120))*D179/Million -> 4.109107692 | E225: =(SUMPRODUCT(E205:E206,E112:E113)+SUMPRODUCT(E211:E212,E119:E120))*E179/Million -> 6.903315394 | F225: =(SUMPRODUCT(F205:F206,F112:F113)+SUMPRODUCT(F211:F212,F119:F120))*F179/Million -> 10.19586993 | G225: =(SUMPRODUCT(G205:G206,G112:G113)+SUMPRODUCT(G211:G212,G119:G120))*G179/Million -> 14.10242284
A226: NPV of recovered revenue LED | B226: $M Nominal | C226: =SUMPRODUCT(C225:G225, C230:G230) -> 32.07519613
A227: NPV of revenue requirement LED | B227: $M Nominal | C227: =SUMPRODUCT(C33:G33, C230:G230) -> 32.07524384
A228: Difference LED | B228: $M Nominal | C228: =C226-C227 -> -4.770539179e-05
A230: Discount factor | C230: =1/PRODUCT($C219:C219) -> 0.9553523829 | D230: =1/PRODUCT($C219:D219) -> 0.9138575301 | E230: =1/PRODUCT($C219:E219) -> 0.8752767881 | F230: =1/PRODUCT($C219:F219) -> 0.8393924211 | G230: =1/PRODUCT($C219:G219) -> 0.8060056681

Sheet Output Tables
A1: Public Lighting Prices | B1: 2020-21 | D1: 2021-22 | F1: 2022-23 | H1: 2023-24 | J1: 2024-25
B2: Conventional | C2: LED | D2: Conventional | E2: LED | F2: Conventional | G2: LED | H2: Conventional | I2: LED | J2: Conventional | K2: LED
A3: NPL1 (Energex Owned & Operated)
A4: Major | B4: ='Public Lighting Pricing'!C203 -> 0.84367 | C4: ='Public Lighting Pricing'!C205 -> 0.42425 | D4: ='Public Lighting Pricing'!D203 -> 0.86366 | E4: ='Public Lighting Pricing'!D205 -> 0.4343 | F4: ='Public Lighting Pricing'!E203 -> 0.88413 | G4: ='Public Lighting Pricing'!E205 -> 0.44459 | H4: ='Public Lighting Pricing'!F203 -> 0.90508 | I4: ='Public Lighting Pricing'!F205 -> 0.45513 | J4: ='Public Lighting Pricing'!G203 -> 0.92653 | K4: ='Public Lighting Pricing'!G205 -> 0.46592
A5: Minor | B5: ='Public Lighting Pricing'!C204 -> 0.38774 | C5: ='Public Lighting Pricing'!C206 -> 0.25749 | D5: ='Public Lighting Pricing'!D204 -> 0.39693 | E5: ='Public Lighting Pricing'!D206 -> 0.26359 | F5: ='Public Lighting Pricing'!E204 -> 0.40634 | G5: ='Public Lighting Pricing'!E206 -> 0.26984 | H5: ='Public Lighting Pricing'!F204 -> 0.41597 | I5: ='Public Lighting Pricing'!F206 -> 0.27624 | J5: ='Public Lighting Pricing'!G204 -> 0.42583 | K5: ='Public Lighting Pricing'!G206 -> 0.28279
A6: NPL2 (Gifted & Energex Operated)
A7: Major | B7: ='Public Lighting Pricing'!C209 -> 0.29324 | C7: ='Public Lighting Pricing'!C211 -> 0.1974 | D7: ='Public Lighting Pricing'!D209 -> 0.30019 | E7: ='Public Lighting Pricing'!D211 -> 0.20208 | F7: ='Public Lighting Pricing'!E209 -> 0.3073 | G7: ='Public Lighting Pricing'!E211 -> 0.20687 | H7: ='Public Lighting Pricing'!F209 -> 0.31458 | I7: ='Public Lighting Pricing'!F211 -> 0.21177 | J7: ='Public Lighting Pricing'!G209 -> 0.32204 | K7: ='Public Lighting Pricing'!G211 -> 0.21679
A8: Minor | B8: ='Public Lighting Pricing'!C210 -> 0.14224 | C8: ='Public Lighting Pricing'!C212 -> 0.13148 | D8: ='Public Lighting Pricing'!D210 -> 0.14561 | E8: ='Public Lighting Pricing'!D212 -> 0.1346 | F8: ='Public Lighting Pricing'!E210 -> 0.14906 | G8: ='Public Lighting Pricing'!E212 -> 0.13779 | H8: ='Public Lighting Pricing'!F210 -> 0.15259 | I8: ='Public Lighting Pricing'!F212 -> 0.14106 | J8: ='Public Lighting Pricing'!G210 -> 0.15621 | K8: ='Public Lighting Pricing'!G212 -> 0.1444
A9: NPL4
A10: Major | C10: ='Public Lighting Pricing'!C215 -> 0.336455 | E10: ='Public Lighting Pricing'!D215 -> 0.344426 | G10: ='Public Lighting Pricing'!E215 -> 0.352587 | I10: ='Public Lighting Pricing'!F215 -> 0.360945 | K10: ='Public Lighting Pricing'!G215 -> 0.369502
A11: Minor | C11: ='Public Lighting Pricing'!C216 -> 0.206539 | E11: ='Public Lighting Pricing'!D216 -> 0.211433 | G11: ='Public Lighting Pricing'!E216 -> 0.216446 | I11: ='Public Lighting Pricing'!F216 -> 0.22158 | K11: ='Public Lighting Pricing'!G216 -> 0.226833

Sheet Changes register
A1: Date | B1: Type of change | C1: Tab | D1: Cell range | E1: Description
A2: 2019-09-10 | B2: Removal of PL contributed assets | C2: Input Data | D2: A66:G76 | E2: Customer contributions not used in the pricing model and not required. In removing them, there is no impact on the calculations
A3: 2019-09-10 | B3: Adjustments to quantities | C3: Public Lighting Pricing | D3: C155:G158 | E3: Removal of the contributed public lighting assets from the quantities used to calculate the Capex component of the NPL1 tariff
A4: 2019-11-05 | B4: WACC | C4: Input Data | D4: C76:G76 | E4: Addition of discount rates for smoothing (WACC) for years 2 to 5
A5: 2019-11-08 | B5: Alignment to PTRM | C5: Public Lighting Pricing | D5: C10:G19 | E5: Removal of pro-rata allocation of tax builiding block for LED public lighting to Conventional public lighting
A6: 2019-11-11 | B6: Simplified volumes | C6: Input Data | E6: Volumes for Conventional: (SV) and (non SV) consolidated into a single volume
A7: 2019-11-10 | B7: VBA | C7: VBA | E7: Removed the VBA script and replace by 2 goalseek macros to calculate the z factors for conventional and LED lights
A8: 2019-11-12 | B8: Smoothing formula for conventional lights | C8: Public Lighting Pricing | D8: C203:G203; C204:G204; C209:G209; C201:G210 | E8: Adjusted formula to comply with F&A: Pt-1*(1+CPI)*(1-X) for conventional lights
A9: 2019-11-12 | B9: Smoothing formula for conventional lights | C9: Public Lighting Pricing | D9: C205:G205; C206:G206; C211:G211; C212:G212 | E9: Given there is no price in Pt-1 for LED, the above formula stat Pt: Pt*(1-X) in first year then it becomes Pt*(1+CPI)*(1-X)
A10: 2019-11-11 | B10: Changes in volumes | C10: Input data | D10: C6:G16 | E10: Reflects updates in LED volumes
A11: 2019-11-11 | B11: Changes in capex and opex | C11: Public Lighting Pricing | D11: C6:G29 | E11: Reflects updates to LED capex and opex
A12: 2019-11-12 | B12: Change to formula | C12: Public Lighting Pricing | D12: C168:G168 | E12: Refurbishment capex was initially recovered from NPL1 volumes when it should have been allocated to NPL1 and NPL2. This had the effect to recover too much capex from NPL2 lights.
